fUSD/lending_fUSD_20240216
["ID","MTS","AMOUNT","RATE_DAILY","PERIOD"]
[314209668,1708083063946,-500.0,0.00042215,2]
[314209669,1708083063956,-500.0,0.00042215,2]
[314209670,1708083063966,-500.0,0.00042215,2]
[314209671,1708083063975,-500.0,0.00042215,2]
[314209672,1708083063985,-500.0,0.00042215,2]
[314209673,1708083063994,-500.0,0.00042215,2]
[314209674,1708083064004,-500.0,0.00042215,2]
[314209675,1708083064014,-500.0,0.00042215,2]
[314209676,1708083064023,-500.0,0.00042215,2]
[314209677,1708083064032,-500.0,0.00042215,2]
[314209678,1708083064042,-500.0,0.00042215,2]
[314209679,1708083064051,-500.0,0.00042215,2]
[314209680,1708083064061,-500.0,0.00042215,2]
[314209681,1708083064071,-500.0,0.00042215,2]
[314209682,1708083064081,-500.0,0.00042215,2]
[314209683,1708083064092,-500.0,0.00042215,2]
[314209684,1708083064102,-500.0,0.00042215,2]
[314209685,1708083064113,-500.0,0.00042215,2]
[314209686,1708083064123,-500.0,0.00042215,2]
[314209687,1708083064135,-500.0,0.00042215,2]
[314209688,1708083064145,-500.0,0.00042215,2]
[314209689,1708083064155,-500.0,0.00042215,2]
[314209690,1708083064165,-500.0,0.00042215,2]
[314209691,1708083064175,-500.0,0.00042215,2]
[314209692,1708083064187,-500.0,0.00042215,2]
[314209693,1708083064196,-500.0,0.00042215,2]
[314209694,1708083064206,-500.0,0.00042215,2]
[314209695,1708083064216,-500.0,0.00042215,2]
[314209696,1708083064225,-500.0,0.00042215,2]
[314209697,1708083064235,-500.0,0.00042215,2]
[314209698,1708083064245,-500.0,0.00042215,2]
[314209699,1708083064254,-500.0,0.00042215,2]
[314209700,1708083064264,-500.0,0.00042215,2]
[314209701,1708083064274,-500.0,0.00042215,2]
[314209702,1708083064284,-500.0,0.00042215,2]
[314209703,1708083064293,-500.0,0.00042215,2]
[314209704,1708083064303,-500.0,0.00042215,2]
[314209705,1708083064312,-151.26561724,0.00042216,15]
[314209706,1708083064322,-4772.58988086,0.00042219,16]
[314209707,1708083064333,-1808.29943736,0.0004224,30]
[314209708,1708083064342,-1340.76951426,0.0004224,30]
[314209709,1708083064351,-262.5641355,0.0004224,30]
[314209710,1708083064362,-1179.91,0.0004225,7]
[314209711,1708083064372,-1179.91,0.0004225,7]
[314209712,1708083064381,-1179.91,0.0004225,7]
[314209713,1708083064391,-1179.91,0.0004225,7]
[314209714,1708083064401,-500.0,0.00042287,7]
[314209715,1708083064410,-151.0,0.00042288,7]
[314209716,1708083064421,-150.0,0.00042294,2]
[314209717,1708083064430,-151.0216,0.00042298,31]
[314209718,1708083064440,-200.0,0.000423,16]
[314209719,1708083064450,-150.0,0.00042325,2]
[314209720,1708083064459,-1500.0,0.0004234,2]
[314209721,1708083064469,-151.0216,0.00042398,27]
[314209722,1708083064479,-150.0,0.00042401,2]
[314209723,1708083064489,-500.0,0.00042406,7]
[314209724,1708083064500,-1000.0,0.00042439,15]
[314209725,1708083064510,-150.0,0.00042464,3]
[314209726,1708083064520,-166.3355875,0.00042464,3]
[314209727,1708083064530,-1000.0,0.00042465,30]
[314209728,1708083064540,-500.0,0.00042465,30]
[314209729,1708083064549,-814.85,0.00042465,30]
[314209730,1708083064558,-334.13352607,0.00042465,30]
[314209731,1708083064568,-491.58786276,0.00042465,30]
[314209732,1708083064577,-500.0,0.00042465,30]
[314209733,1708083064587,-500.0,0.00042465,30]
[314209734,1708083064597,-1000.0,0.00042465,3]
[314209735,1708083064610,-500.0,0.00042465,30]
[314209736,1708083064619,-500.0,0.00042465,30]
[314209737,1708083064629,-600.0,0.00042465,30]
[314209738,1708083064638,-2935.01,0.00042465,30]
[314209739,1708083064649,-500.0,0.00042465,30]
[314209740,1708083064659,-500.0,0.00042465,30]
[314209741,1708083064669,-500.0,0.00042465,30]
[314209742,1708083064679,-791.34,0.00042465,7]
[314209743,1708083064690,-500.0,0.00042465,30]
[314209744,1708083064701,-500.0,0.00042465,30]
[314209745,1708083064710,-500.0,0.00042465,30]
[314209746,1708083064720,-500.0,0.00042465,30]
[314209747,1708083064730,-645.68824147,0.00042465,30]
[314209748,1708083064739,-1143.66,0.00042465,30]
[314209749,1708083064749,-500.0,0.00042465,30]
[314209750,1708083064759,-500.0,0.00042465,30]
[314209751,1708083064768,-500.0,0.00042465,30]
[314209752,1708083064778,-500.0,0.00042465,30]
[314209753,1708083064788,-500.0,0.00042465,30]
[314209754,1708083064798,-500.0,0.00042465,30]
[314209755,1708083064808,-500.0,0.00042465,30]
[314209756,1708083064818,-500.0,0.00042465,30]
[314209757,1708083064827,-500.0,0.00042465,30]
[314209758,1708083064839,-500.0,0.00042465,30]
[314209759,1708083064849,-503.87,0.00042465,30]
[314209760,1708083064859,-500.0,0.00042465,30]
[314209761,1708083064869,-500.0,0.00042465,30]
[314209762,1708083064879,-760.47,0.00042465,30]
[314209763,1708083064888,-500.0,0.00042465,30]
[314209764,1708083064899,-4387.65,0.00042465,30]
[314209765,1708083064908,-500.0,0.00042465,30]
[314209766,1708083064918,-912.25,0.00042465,30]
[314209767,1708083064928,-500.0,0.00042465,30]
[314209768,1708083064938,-4588.81,0.00042465,30]
[314209769,1708083064948,-871.4,0.00042465,30]
[314209770,1708083064958,-3417.12,0.00042465,30]
[314209771,1708083064968,-1000.0,0.00042465,7]
[314209772,1708083064978,-500.0,0.00042465,30]
[314209773,1708083064988,-500.0,0.00042465,30]
[314209774,1708083064998,-500.0,0.00042465,30]
[314209775,1708083065007,-500.0,0.00042465,30]
[314209776,1708083065019,-500.0,0.00042465,30]
[314209777,1708083065030,-580.88,0.00042465,30]
[314209778,1708083065040,-500.0,0.00042465,30]
[314209779,1708083065051,-500.0,0.00042465,30]
[314209780,1708083065061,-500.0,0.00042465,30]
[314209781,1708083065072,-1000.0,0.00042474,15]
[314209782,1708083065084,-1000.0,0.00042474,15]
[314209783,1708083065094,-151.26561724,0.00042475,16]
[314209784,1708083065105,-1000.0,0.00042476,15]
[314209785,1708083065115,-1000.0,0.00042477,15]
[314209786,1708083065126,-844.5816278,0.00042496,2]
[314209787,1708083065135,-151.0216,0.00042498,27]
[314209788,1708083065145,-160.0,0.000425,8]
[314209789,1708083065154,-1038.0,0.000425,30]
[314209790,1708083065164,-1000.0,0.000425,2]
[314209791,1708083065173,-205.53,0.000425,7]
[314209792,1708083065182,-4408.0,0.000425,2]
[314209793,1708083065192,-164.680254,0.000425,14]
[314209794,1708083065201,-1179.91,0.00042523,7]
[314209795,1708083065211,-1179.91,0.00042523,7]
[314209796,1708083065221,-500.0,0.00042525,7]
[314209797,1708083065231,-33273.22335008,0.00042548,4]
[314209798,1708083065241,-150.0,0.0004256,2]
[314209799,1708083065251,-150.0,0.00042562,2]
[314209800,1708083065261,-4529.5767482,0.00042571,2]
[314209801,1708083065271,-246.0,0.00042574,7]
[314209802,1708083065282,-150.0,0.00042574,7]
[314209803,1708083065292,-153.0,0.00042574,7]
[314209804,1708083065302,-150.0,0.00042574,7]
[314209805,1708083065313,-197.0,0.0004259,2]
[314209806,1708083065323,-150.0,0.00042591,2]
[314209807,1708083065333,-151.0216,0.00042598,31]
[314209808,1708083065344,-92540.3016825,0.00042598,2]
[314209809,1708083065354,-5011.588624,0.000426,6]
[314209810,1708083065364,-150.0,0.00042601,2]
[314209811,1708083065374,-1500.0,0.00042627,2]
[314209812,1708083065385,-4772.58988086,0.00042642,17]
[314209813,1708083065395,-500.0,0.00042644,7]
[314209814,1708083065406,-150.0,0.00042646,2]
[314209815,1708083065415,-150.0,0.00042665,2]
[314209816,1708083065426,-600.0,0.00042668,2]
[314209817,1708083065436,-772.5142159,0.00042668,2]
[314209818,1708083065446,-6790.9463219,0.00042668,2]
[314209819,1708083065456,-150.0,0.00042688,2]
[314209820,1708083065467,-150.0,0.00042689,2]
[314209821,1708083065477,-500.0,0.0004269,30]
[314209822,1708083065487,-150.0,0.00042694,2]
[314209823,1708083065498,-2527.8053952,0.00042697,2]
[314209824,1708083065632,-151.0216,0.00042698,31]
[314209825,1708083065642,-150.0,0.000427,14]
[314209826,1708083065653,-150.0,0.00042716,2]
[314209827,1708083065663,-150.0,0.0004272,2]
[314209828,1708083065672,-150.0,0.00042721,2]
[314209829,1708083065682,-151.26561724,0.00042733,17]
[314209830,1708083065692,-1123.89657711,0.00042739,11]
[314209831,1708083065702,-1027.69280733,0.00042739,30]
[314209832,1708083065712,-500.0,0.00042739,30]
[314209833,1708083065721,-814.85,0.00042739,30]
[314209834,1708083065731,-500.0,0.00042739,30]
[314209835,1708083065740,-500.0,0.00042739,30]
[314209836,1708083065749,-500.0,0.00042739,30]
[314209837,1708083065759,-500.0,0.00042739,30]
[314209838,1708083065768,-600.0,0.00042739,30]
[314209839,1708083065777,-2935.01,0.00042739,30]
[314209840,1708083065787,-500.0,0.00042739,30]
[314209841,1708083065797,-1011.69,0.00042739,7]
[314209842,1708083065807,-500.0,0.00042739,30]
[314209843,1708083065817,-428.08354575,0.00042739,30]
[314209844,1708083065826,-791.34,0.00042739,7]
[314209845,1708083065837,-500.0,0.00042739,30]
[314209846,1708083065847,-500.0,0.00042739,30]
[314209847,1708083065857,-500.0,0.00042739,30]
[314209848,1708083065866,-500.0,0.00042739,30]
[314209849,1708083065876,-1143.66,0.00042739,30]
[314209850,1708083065886,-500.0,0.00042739,30]
[314209851,1708083065895,-500.0,0.00042739,30]
[314209852,1708083065905,-500.0,0.00042739,30]
[314209853,1708083065915,-500.0,0.00042739,30]
[314209854,1708083065925,-500.0,0.00042739,30]
[314209855,1708083065934,-500.0,0.00042739,30]
[314209856,1708083065946,-500.0,0.00042739,30]
[314209857,1708083065956,-500.0,0.00042739,30]
[314209858,1708083065965,-500.0,0.00042739,30]
[314209859,1708083065975,-500.0,0.00042739,30]
[314209860,1708083065984,-503.87,0.00042739,30]
[314209861,1708083065994,-500.0,0.00042739,30]
[314209862,1708083066003,-500.0,0.00042739,30]
[314209863,1708083066013,-760.47,0.00042739,30]
[314209864,1708083066023,-500.0,0.00042739,30]
[314209865,1708083066032,-4387.65,0.00042739,30]
[314209866,1708083066042,-500.0,0.00042739,30]
[314209867,1708083066051,-912.25,0.00042739,30]
[314209868,1708083066061,-500.0,0.00042739,30]
[314209869,1708083066071,-4588.81,0.00042739,30]
[314209870,1708083066080,-3417.12,0.00042739,30]
[314209871,1708083066091,-871.4,0.00042739,30]
[314209872,1708083066100,-1000.0,0.00042739,7]
[314209873,1708083066110,-500.0,0.00042739,30]
[314209874,1708083066119,-500.0,0.00042739,30]
[314209875,1708083066129,-500.0,0.00042739,30]
[314209876,1708083066138,-500.0,0.00042739,30]
[314209877,1708083066147,-500.0,0.00042739,30]
[314209878,1708083066156,-580.88,0.00042739,30]
[314209879,1708083066165,-500.0,0.00042739,30]
[314209880,1708083066174,-500.0,0.00042739,30]
[314209881,1708083066183,-500.0,0.00042739,30]
[314209882,1708083066192,-500.0,0.00042747,2]
[314209883,1708083066202,-150.0,0.00042748,2]
[314209884,1708083066211,-150.0,0.00042753,2]
[314209885,1708083066221,-65434.92492623,0.00042755,5]
[314209886,1708083066238,-29151.3656423,0.00042755,5]
[314209887,1708083066249,-5413.70943147,0.00042755,5]
[314209888,1708083066259,-150.0,0.00042757,2]
[314209889,1708083066268,-150.0,0.00042757,2]
[314209890,1708083066278,-500.0,0.00042764,7]
[314209891,1708083066288,-150.0,0.00042774,2]
[314209892,1708083066298,-200.0,0.00042777,33]
[314209893,1708083066308,-200.0,0.00042777,32]
[314209894,1708083066317,-200.0,0.00042777,31]
[314209895,1708083066327,-150.0,0.0004279,2]
[314209896,1708083066337,-1978.29210274,0.00042793,5]
[314209897,1708083066346,-1179.91,0.00042796,7]
[314209898,1708083066356,-1179.91,0.00042796,7]
[314209899,1708083066365,-151.0216,0.00042798,31]
[314209900,1708083066375,-153.95,0.000428,4]
[314209901,1708083066384,-153.95,0.000428,4]
[314209902,1708083066393,-153.95,0.000428,4]
[314209903,1708083066403,-153.95,0.000428,4]
[314209904,1708083066413,-153.95,0.000428,4]
[314209905,1708083066422,-153.95,0.000428,4]
[314209906,1708083066431,-153.95,0.000428,4]
[314209907,1708083066440,-153.95,0.000428,4]
[314209908,1708083066449,-153.95,0.000428,4]
[314209909,1708083066459,-153.95,0.000428,4]
[314209910,1708083066468,-530.3255646,0.000428,7]
[314209911,1708083066479,-696.65,0.000428,4]
[314209912,1708083066489,-696.65,0.000428,4]
[314209913,1708083066499,-696.65,0.000428,4]
[314209914,1708083066509,-696.65,0.000428,4]
[314209915,1708083066519,-696.65,0.000428,4]
[314209916,1708083066528,-696.65,0.000428,4]
[314209917,1708083066538,-696.65,0.000428,4]
[314209918,1708083066548,-696.65,0.000428,4]
[314209919,1708083066559,-696.65,0.000428,4]
[314209920,1708083066569,-696.65,0.000428,4]
[314209921,1708083066579,-696.65,0.000428,4]
[314209922,1708083066590,-696.65,0.000428,4]
[314209923,1708083066600,-696.65,0.000428,4]
[314209924,1708083066613,-696.65,0.000428,4]
[314209925,1708083066622,-696.65,0.000428,4]
[314209926,1708083066632,-696.65,0.000428,4]
[314209927,1708083066641,-696.65,0.000428,4]
[314209928,1708083066652,-696.65,0.000428,4]
[314209929,1708083066661,-696.65,0.000428,4]
[314209930,1708083066670,-696.65,0.000428,4]
[314209931,1708083066679,-400.0,0.00042821,2]
[314209932,1708083066690,-150.0,0.00042842,2]
[314209933,1708083066700,-150.0,0.00042853,2]
[314209934,1708083066709,-500.0,0.00042883,7]
[314209935,1708083066721,-150.0,0.00042894,2]
[314209936,1708083066730,-151.0216,0.00042898,31]
[314209937,1708083066739,-777.0,0.000429,30]
[314209938,1708083066748,-150.0,0.000429,14]
[314209939,1708083066757,-155.5,0.00042903,2]
[314209940,1708083066766,-150.0,0.00042905,2]
[314209941,1708083066775,-150.0,0.00042931,2]
[314209942,1708083066784,-150.0,0.00042933,2]
[314209943,1708083066794,-150.0,0.00042942,2]
[314209944,1708083066804,-246.0,0.00042944,7]
[314209945,1708083066813,-150.0,0.00042944,7]
[314209946,1708083066823,-153.0,0.00042944,7]
[314209947,1708083066833,-150.0,0.00042948,2]
[314209948,1708083066843,-150.0,0.00042959,2]
[314209949,1708083066853,-150.0,0.00042967,2]
[314209950,1708083066862,-150.0,0.00042972,2]
[314209951,1708083066872,-151.26561724,0.00042991,18]
[314209952,1708083066882,-151.0216,0.00042998,31]
[314209953,1708083066891,-300.0,0.00043,12]
[314209954,1708083066900,-160.0,0.00043,9]
[314209955,1708083066911,-867.10429518,0.00043,30]
[314209956,1708083066920,-457.94981141,0.00043,30]
[314209957,1708083066929,-1000.0,0.00043,30]
[314209958,1708083066939,-709.40860052,0.00043,30]
[314209959,1708083066950,-205.53,0.00043,7]
[314209960,1708083066959,-600.0,0.00043,3]
[314209961,1708083066968,-500.0,0.00043,10]
[314209962,1708083066977,-236.18240156,0.00043,30]
[314209963,1708083066986,-1200.0,0.00043,44]
[314209964,1708083066995,-500.0,0.00043002,7]
[314209965,1708083067005,-303.61776293,0.00043002,2]
[314209966,1708083067014,-500.0,0.00043013,30]
[314209967,1708083067024,-814.85,0.00043013,30]
[314209968,1708083067033,-500.0,0.00043013,30]
[314209969,1708083067042,-500.0,0.00043013,30]
[314209970,1708083067052,-523.98606285,0.00043013,30]
[314209971,1708083067061,-600.0,0.00043013,30]
[314209972,1708083067070,-2935.01,0.00043013,30]
[314209973,1708083067080,-791.34,0.00043013,7]
[314209974,1708083067090,-6.8297906,0.00043013,30]
[314209975,1708083067103,-493.1702094,0.00043013,30]
[314209976,1708083067113,-99.36122143,0.00043013,30]
[314209977,1708083067126,-337.05370028,0.00043013,30]
[314209978,1708083067139,-63.58507829,0.00043013,30]
[314209979,1708083067149,-500.0,0.00043013,30]
[314209980,1708083067160,-74.26811048,0.00043013,30]
[314209981,1708083067173,-425.73188952,0.00043013,30]
[314209982,1708083067184,-270.58811048,0.00043013,30]
[314209983,1708083067197,-873.07188952,0.00043013,30]
[314209984,1708083067208,-360.31832813,0.00043013,30]
[314209985,1708083067220,-500.0,0.00043013,30]
[314209986,1708083067231,-500.0,0.00043013,30]
[314209987,1708083067242,-500.0,0.00043013,30]
[314209988,1708083067252,-500.0,0.00043013,30]
[314209989,1708083067262,-500.0,0.00043013,30]
[314209990,1708083067274,-500.0,0.00043013,30]
[314209991,1708083067284,-500.0,0.00043013,30]
[314209992,1708083067294,-500.0,0.00043013,30]
[314209993,1708083067305,-503.87,0.00043013,30]
[314209994,1708083067316,-500.0,0.00043013,30]
[314209995,1708083067328,-500.0,0.00043013,30]
[314209996,1708083067340,-760.47,0.00043013,30]
[314209997,1708083067351,-500.0,0.00043013,30]
[314209998,1708083067362,-4387.65,0.00043013,30]
[314209999,1708083067373,-500.0,0.00043013,30]
[314210000,1708083067383,-912.25,0.00043013,30]
[314210001,1708083067394,-494.50719321,0.00043013,30]
[314210002,1708083067409,-5.49280679,0.00043013,30]
[314210003,1708083067422,-937.75231467,0.00043013,30]
[314210004,1708083067435,-1909.90824921,0.00043013,30]
[314210005,1708083067448,-1051.547,0.00043013,30]
[314210006,1708083067462,-689.60243612,0.00043013,30]
[314210007,1708083067472,-3417.12,0.00043013,30]
[314210008,1708083067483,-871.4,0.00043013,30]
[314210009,1708083067493,-1000.0,0.00043013,7]
[314210010,1708083067502,-500.0,0.00043013,30]
[314210011,1708083067513,-500.0,0.00043013,30]
[314210012,1708083067523,-500.0,0.00043013,30]
[314210013,1708083067533,-500.0,0.00043013,30]
[314210014,1708083067542,-500.0,0.00043013,30]
[314210015,1708083067553,-580.88,0.00043013,30]
[314210016,1708083067563,-529.31534201,0.00043013,30]
[314210017,1708083067572,-500.0,0.00043013,30]
[314210018,1708083067582,-500.0,0.00043013,30]
[314210019,1708083067592,-205.0,0.00043032,28]
[314210020,1708083067606,-150.0,0.00043055,2]
[314210021,1708083067616,-150.0,0.00043057,2]
[314210022,1708083067626,-150.0,0.00043064,2]
[314210023,1708083067635,-150.0,0.00043064,2]
[314210024,1708083067645,-4772.58988086,0.00043065,17]
[314210025,1708083067655,-1179.91,0.00043069,7]
[314210026,1708083067664,-1179.91,0.00043069,7]
[314210027,1708083067674,-150.0,0.00043095,2]
[314210028,1708083067683,-150.0,0.00043096,2]
[314210029,1708083067694,-151.0216,0.00043098,32]
[314210030,1708083067704,-150.0,0.00043103,2]
[314210031,1708083067713,-150.0,0.00043107,2]
[314210032,1708083067723,-150.0,0.0004311,4]
[314210033,1708083067732,-166.3355875,0.0004311,4]
[314210034,1708083067742,-150.0,0.00043114,2]
[314210035,1708083067751,-500.0,0.00043121,7]
[314210036,1708083067761,-150.0,0.00043128,2]
[314210037,1708083067770,-150.0,0.00043128,2]
[314210038,1708083067779,-150.0,0.00043138,2]
[314210039,1708083067788,-312.18,0.0004314,2]
[314210040,1708083067797,-314.33718776,0.00043143,30]
[314210041,1708083067806,-150.88,0.00043151,2]
[314210042,1708083067815,-150.0,0.00043152,2]
[314210043,1708083067824,-150.0,0.00043161,2]
[314210044,1708083067834,-294.03885956,0.00043168,36]
[314210045,1708083067843,-1500.0,0.00043173,2]
[314210046,1708083067852,-150.0,0.00043187,2]
[314210047,1708083067861,-151.0216,0.00043198,32]
[314210048,1708083067870,-341.62157324,0.00043198,2]
[314210049,1708083067883,-224.26759866,0.00043198,2]
[314210050,1708083067892,-4974.5660486,0.00043198,2]
[314210051,1708083067901,-3318.0469463,0.00043198,2]
[314210052,1708083067910,-150.0,0.00043198,2]
[314210053,1708083067921,-618.6806509,0.00043198,2]
[314210054,1708083067930,-2669.64314907,0.00043198,2]
[314210055,1708083067943,-1321.86465,0.00043198,2]
[314210056,1708083067955,-500.0,0.00043198,2]
[314210057,1708083067966,-837.93466786,0.00043198,2]
[314210058,1708083067978,-2178.02736905,0.00043198,2]
[314210059,1708083068050,-2000.0,0.0003969,120]
[314210060,1708083068059,-2007.97712017,0.00043198,2]
[314210061,1708083068070,-24313.74817788,0.00043198,2]
[314210062,1708083068081,-1554.71787861,0.00043198,2]
[314210063,1708083068093,-1874.64719442,0.00043198,2]
[314210064,1708083068113,-406.08181871,0.00035331,7]
[314210065,1708083068122,-30529.90712214,0.00043198,2]
[314210066,1708083068131,-150.0,0.00043207,2]
[314210067,1708083068141,-150.0,0.00043222,2]
[314210068,1708083068150,-1851.6911047,0.00043227,2]
[314210069,1708083068159,-362.22004699,0.00043238,2]
[314210070,1708083068168,-500.0,0.0004324,7]
[314210071,1708083068178,-151.26561724,0.00043249,19]
[314210072,1708083068188,-1835.76602346,0.0004325,4]
[314210073,1708083068200,-150.0,0.00043261,2]
[314210074,1708083068208,-150.0,0.00043268,2]
[314210075,1708083068218,-161.31172468,0.00043279,30]
[314210076,1708083068227,-150.0,0.00043283,2]
[314210077,1708083068237,-150.0,0.00043286,2]
[314210078,1708083068246,-500.0,0.00043287,30]
[314210079,1708083068255,-814.85,0.00043287,30]
[314210080,1708083068264,-500.0,0.00043287,30]
[314210081,1708083068275,-600.0,0.00043287,30]
[314210082,1708083068284,-2935.01,0.00043287,30]
[314210083,1708083068293,-1180.305,0.00043287,7]
[314210084,1708083068303,-791.34,0.00043287,7]
[314210085,1708083068312,-500.0,0.00043287,30]
[314210086,1708083068321,-500.0,0.00043287,30]
[314210087,1708083068331,-500.0,0.00043287,30]
[314210088,1708083068342,-500.0,0.00043287,30]
[314210089,1708083068351,-1143.66,0.00043287,30]
[314210090,1708083068360,-500.0,0.00043287,30]
[314210091,1708083068370,-500.0,0.00043287,30]
[314210092,1708083068380,-500.0,0.00043287,30]
[314210093,1708083068389,-500.0,0.00043287,30]
[314210094,1708083068398,-500.0,0.00043287,30]
[314210095,1708083068409,-500.0,0.00043287,30]
[314210096,1708083068418,-500.0,0.00043287,30]
[314210097,1708083068534,-503.87,0.00043287,30]
[314210098,1708083068545,-197.21537165,0.00043287,30]
[314210099,1708083068555,-583.25,0.00043287,30]
[314210100,1708083068565,-760.47,0.00043287,30]
[314210101,1708083068574,-500.0,0.00043287,30]
[314210102,1708083068585,-4387.65,0.00043287,30]
[314210103,1708083068595,-500.0,0.00043287,30]
[314210104,1708083068605,-912.25,0.00043287,30]
[314210105,1708083068617,-4588.81,0.00043287,30]
[314210106,1708083068627,-3417.12,0.00043287,30]
[314210107,1708083068636,-871.4,0.00043287,30]
[314210108,1708083068645,-1000.0,0.00043287,7]
[314210109,1708083068655,-500.0,0.00043287,30]
[314210110,1708083068665,-500.0,0.00043287,30]
[314210111,1708083068674,-500.0,0.00043287,30]
[314210112,1708083068683,-500.0,0.00043287,30]
[314210113,1708083068694,-575.5,0.00043287,30]
[314210114,1708083068703,-580.88,0.00043287,30]
[314210115,1708083068712,-500.0,0.00043287,30]
[314210116,1708083068722,-150.0,0.00043288,2]
[314210117,1708083068733,-200.0,0.000433,17]
[314210118,1708083068742,-150.0,0.00043304,2]
[314210119,1708083068753,-150.0,0.00043308,2]
[314210120,1708083068762,-150.0,0.00043312,2]
[314210121,1708083068771,-246.0,0.00043314,7]
[314210122,1708083068782,-150.0,0.00043314,7]
[314210123,1708083068792,-153.0,0.00043314,7]
[314210124,1708083068803,-1000.0,0.00043333,4]
[314210125,1708083068814,-150.0,0.00043342,2]
[314210126,1708083068824,-1179.91,0.00043342,7]
[314210127,1708083068833,-1179.91,0.00043342,7]
[314210128,1708083068843,-150.0,0.00043346,2]
[314210129,1708083068852,-500.0,0.00043359,7]
[314210130,1708083068861,-150.0,0.00043378,2]
[314210131,1708083068871,-150.0,0.00043383,2]
[314210132,1708083068880,-159.46,0.00043384,2]
[314210133,1708083068889,-150.0,0.00043392,2]
[314210134,1708083068898,-150.0,0.00043406,2]
[314210135,1708083068908,-150.0,0.00043407,2]
[314210136,1708083068917,-150.0,0.00043408,2]
[314210137,1708083068927,-150.0,0.00043435,2]
[314210138,1708083068937,-150.0,0.00043442,2]
[314210139,1708083068948,-150.0,0.00043465,2]
[314210140,1708083068959,-186.83697916,0.00043469,2]
[314210141,1708083068968,-404.10804879,0.0004347,120]
[314210142,1708083068977,-5286.48976421,0.00043476,5]
[314210143,1708083068987,-150.0,0.00043478,2]
[314210144,1708083068998,-500.0,0.00043478,7]
[314210145,1708083069008,-150.0,0.00043479,2]
[314210146,1708083069017,-4772.58988086,0.00043488,18]
[314210147,1708083069027,-150.0,0.00043492,2]
[314210148,1708083069039,-155.68648557,0.00043496,30]
[314210149,1708083069050,-151.0216,0.00043498,32]
[314210150,1708083069061,-10000.0,0.000435,5]
[314210151,1708083069071,-202.0,0.000435,30]
[314210152,1708083069080,-160.0,0.000435,10]
[314210153,1708083069091,-205.53,0.000435,7]
[314210154,1708083069100,-150.0,0.00043506,2]
[314210155,1708083069111,-151.26561724,0.00043507,20]
[314210156,1708083069120,-150.0,0.00043525,2]
[314210157,1708083069131,-150.0,0.00043529,2]
[314210158,1708083069140,-150.0,0.00043534,2]
[314210159,1708083069150,-150.0,0.00043549,2]
[314210160,1708083069160,-500.0,0.00043561,30]
[314210161,1708083069169,-814.85,0.00043561,30]
[314210162,1708083069178,-500.0,0.00043561,30]
[314210163,1708083069187,-292.63803564,0.00043561,30]
[314210164,1708083069198,-2935.01,0.00043561,30]
[314210165,1708083069210,-791.34,0.00043561,7]
[314210166,1708083069221,-500.0,0.00043561,30]
[314210167,1708083069231,-500.0,0.00043561,30]